bitfinex/quotes_BTCUSD_20241128
["timestamp","ask_amount","ask_price","bid_price","bid_amount"]
[1732752201726,0.104321,95858.0,95849.0,0.01]
[1732752201976,0.104317,95861.0,95852.0,0.01]
[1732752202273,0.10432,95859.0,95853.0,0.01]
[1732752202483,0.12513799,95870.0,95862.0,0.01]
[1732752202484,0.10431,95868.0,95862.0,0.01]
[1732752202701,0.10431,95868.0,95853.0,0.10284521]
[1732752202702,0.0193416,95867.0,95864.0,0.01]
[1732752202926,0.0193416,95866.0,95864.0,0.01]
[1732752203143,0.208608,95874.0,95864.0,0.01]
[1732752203362,0.03997837,95873.0,95857.0,0.104321]
[1732752203580,0.22795907,95872.0,95857.0,0.1044566]
[1732752203831,0.14605125,95880.0,95858.0,0.20716521]
[1732752203832,0.12365407,95871.0,95858.0,0.20716521]
[1732752204036,0.01934807,95871.0,95865.0,0.104313]
[1732752204279,0.02161601,95880.0,95861.0,0.0001356]
[1732752204528,0.004,95874.0,95871.0,0.0001356]
[1732752204759,0.03094036,95885.0,95865.0,0.10284521]
[1732752204760,0.104293,95883.0,95869.0,0.17536882]
[1732752204980,0.0193545,95882.0,95869.0,0.27821403]
[1732752205207,0.104291,95885.0,95872.0,0.104304]
[1732752205429,0.002,95871.0,95870.0,0.208615]
[1732752205639,0.002,95871.0,95870.0,0.25284521]
[1732752205858,0.002,95871.0,95870.0,0.35715221]
[1732752206112,0.10429,95886.0,95871.0,0.358612]
[1732752206324,0.20857,95891.0,95872.0,0.10284521]
[1732752206541,0.104289,95887.0,95872.0,0.10284521]
[1732752206777,0.0207651,95892.0,95872.0,0.10284521]
[1732752206995,0.0207651,95892.0,95879.0,0.208595]
[1732752207209,0.1250491,95892.0,95881.0,0.104295]
[1732752207457,0.005,95891.0,95879.0,0.10284521]
[1732752207678,0.104297,95880.0,95879.0,0.10284521]
[1732752207895,0.02150981,95894.0,95879.0,0.10284521]
[1732752207896,0.0008584,95894.0,95879.0,0.10284521]
[1732752208116,0.104294,95882.0,95879.0,0.10284521]
[1732752208329,0.02081532,95886.0,95863.0,0.15]
[1732752208546,0.02081532,95886.0,95850.0,0.208657]
[1732752208547,0.187977,95880.0,95850.0,0.208657]
[1732752208766,0.187977,95880.0,95854.0,0.104324]
[1732752208767,0.10431,95868.0,95854.0,0.104324]
[1732752209006,0.01935435,95878.0,95856.0,0.00356188]
[1732752209214,0.20862,95868.0,95856.0,0.0017156]
[1732752209422,0.104315,95863.0,95856.0,0.0017156]
[1732752209647,0.01935503,95878.0,95856.0,0.0017156]
[1732752209875,0.2086,95877.0,95856.0,0.00356188]
[1732752210089,0.208602,95876.0,95856.0,0.00356188]
[1732752210302,0.104312,95866.0,95856.0,0.15356188]
[1732752210514,0.104315,95863.0,95856.0,0.15356188]
[1732752210761,0.104315,95863.0,95856.0,0.1517156]
[1732752210971,0.20867737,95880.0,95862.0,0.0829]
[1732752211429,0.104315,95863.0,95862.0,0.0849]
[1732752211667,0.104315,95863.0,95862.0,0.0929]
[1732752211900,0.104315,95863.0,95862.0,0.0809]
[1732752212142,0.208598,95878.0,95856.0,0.0017156]
[1732752212143,0.104322,95857.0,95856.0,0.0017156]
[1732752213274,0.1236785,95857.0,95856.0,0.0017156]
[1732752213488,0.15464961,95857.0,95856.0,0.0017156]
[1732752214203,0.15464961,95857.0,95856.0,0.0047156]
[1732752214448,0.15464961,95857.0,95856.0,0.0017156]
[1732752214678,0.1236785,95857.0,95856.0,0.0017156]
[1732752214908,0.15465137,95857.0,95856.0,0.0047156]
[1732752215339,0.15465137,95857.0,95856.0,0.0067156]
[1732752215820,0.15465455,95857.0,95856.0,0.0047156]
[1732752216033,0.15565455,95857.0,95856.0,0.0047156]
[1732752216703,0.02035867,95857.0,95856.0,0.0047156]
[1732752216921,0.105322,95857.0,95856.0,0.0047156]
[1732752217138,0.105322,95857.0,95856.0,0.0017156]
[1732752217603,0.12468112,95857.0,95856.0,0.0017156]
[1732752217849,0.12668112,95857.0,95856.0,0.0017156]
[1732752218100,0.20125174,95857.0,95856.0,0.0017156]
[1732752218310,0.21429073,95857.0,95856.0,0.0017156]
[1732752218546,0.24526461,95857.0,95856.0,0.0047156]
[1732752218756,0.21429073,95857.0,95856.0,0.0017156]
[1732752218994,0.19318335,95857.0,95856.0,0.0037156]
[1732752219478,0.16969273,95857.0,95856.0,0.0017156]
[1732752219702,0.05233174,95857.0,95856.0,0.0017156]
[1732752219922,0.05233174,95857.0,95856.0,0.28758381]
[1732752219923,0.005,95857.0,95856.0,0.28758381]
[1732752220570,0.003,95857.0,95856.0,0.31058381]
[1732752220797,0.003,95857.0,95856.0,0.46058381]
[1732752221052,0.000858,95877.0,95876.0,0.356001]
[1732752221267,0.000858,95877.0,95876.0,0.45884621]
[1732752222535,0.000858,95877.0,95876.0,0.45840634]
[1732752222768,0.000858,95877.0,95876.0,0.46440634]
[1732752222769,0.001858,95877.0,95876.0,0.46440634]
[1732752224601,0.002858,95877.0,95876.0,0.47340634]
[1732752225705,0.000858,95877.0,95876.0,0.47340634]
[1732752226351,0.0008582,95910.0,95893.0,0.127282]
[1732752226606,0.0008582,95910.0,95893.0,0.23012721]
[1732752227331,0.0008582,95910.0,95893.0,0.38012721]
[1732752227541,0.0008582,95910.0,95893.0,0.46882721]
[1732752228038,0.0018584,95894.0,95893.0,0.47682721]
[1732752228262,0.0008584,95894.0,95893.0,0.47382721]
[1732752228492,0.0008584,95894.0,95893.0,0.46882721]
[1732752228716,0.0018584,95894.0,95893.0,0.47782721]
[1732752228942,0.0028584,95894.0,95893.0,0.48682721]
[1732752229463,0.0008582,95910.0,95893.0,0.48682721]
[1732752229464,0.0008582,95910.0,95909.0,0.104265]
[1732752229667,0.0008582,95910.0,95909.0,0.23195533]
[1732752229888,0.0008582,95910.0,95909.0,0.23011021]
[1732752230336,0.0008582,95910.0,95909.0,0.37967326]
[1732752231229,0.0008582,95910.0,95909.0,0.38967326]
[1732752231440,0.0008582,95910.0,95909.0,0.47077326]
[1732752232138,0.0018582,95910.0,95909.0,0.47877326]
[1732752232354,0.0008582,95910.0,95909.0,0.47077326]
[1732752232570,0.00508383,95928.0,95927.0,0.104245]
[1732752232786,0.00508383,95928.0,95927.0,0.358935]
[1732752233020,0.00508383,95928.0,95927.0,0.38009021]
[1732752234165,0.00508383,95928.0,95927.0,0.46119021]
[1732752234410,0.00508383,95928.0,95927.0,0.47119021]
[1732752234834,0.00508383,95928.0,95927.0,0.47419021]
[1732752235053,0.00508383,95928.0,95927.0,0.47119021]
[1732752235486,0.00508383,95928.0,95927.0,0.47719021]
[1732752236350,0.00608383,95928.0,95927.0,0.48019021]
[1732752236845,0.00508383,95928.0,95927.0,0.47119021]
[1732752237067,0.00608383,95928.0,95927.0,0.48019021]
[1732752237774,0.00608383,95928.0,95927.0,0.48819021]
[1732752238208,0.00608383,95928.0,95927.0,0.48019021]
[1732752238415,0.00508383,95928.0,95927.0,0.48019021]
[1732752238839,0.00508383,95928.0,95927.0,0.47119021]
[1732752239067,0.00508383,95928.0,95927.0,0.48019021]
[1732752239276,0.02,95950.0,95927.0,0.48019021]
[1732752239277,0.02,95950.0,95941.0,0.26423]
[1732752239489,0.02,95950.0,95941.0,0.47117521]
[1732752240595,0.02,95950.0,95941.0,0.51077521]
[1732752240784,0.14370208,95944.0,95943.0,0.254228]
[1732752241016,0.14370208,95944.0,95943.0,0.35707321]
[1732752241248,0.14370208,95944.0,95943.0,0.36707321]
[1732752242121,0.14370208,95944.0,95943.0,0.43967321]
[1732752242336,0.14370208,95944.0,95943.0,0.44867321]
[1732752243447,0.14470208,95944.0,95943.0,0.45767321]
[1732752244161,0.14470208,95944.0,95943.0,0.42467321]
[1732752244402,0.14470208,95944.0,95943.0,0.37507321]
[1732752244827,0.14470208,95944.0,95943.0,0.22507321]
[1732752245763,0.14370208,95944.0,95943.0,0.20707321]
[1732752245977,0.14370208,95944.0,95943.0,0.21607321]
[1732752246202,0.14470208,95944.0,95943.0,0.37507321]
[1732752246457,0.14470208,95944.0,95943.0,0.39807321]
[1732752246909,0.14370208,95944.0,95943.0,0.38907321]
[1732752247152,0.14370208,95944.0,95943.0,0.29480521]
[1732752247367,0.24792908,95944.0,95943.0,0.11280521]
[1732752247826,0.24792908,95944.0,95943.0,0.12180521]
[1732752248048,0.24892908,95944.0,95943.0,0.12080521]
[1732752248503,0.26823861,95944.0,95943.0,0.12980521]
[1732752248710,0.26823861,95944.0,95943.0,0.12080521]
[1732752249153,0.26823861,95944.0,95943.0,0.12180521]
[1732752249396,0.29818669,95944.0,95943.0,0.11380521]
[1732752249851,0.29818669,95944.0,95943.0,0.01296]
[1732752250607,0.37888669,95944.0,95943.0,0.01296]
[1732752250828,0.104262,95913.0,95905.0,0.104269]
[1732752251045,0.05025761,95912.0,95906.0,0.10284521]
[1732752251280,0.31130221,95943.0,95906.0,0.10284521]
[1732752251281,0.25878361,95911.0,95906.0,0.10284521]
[1732752251488,0.03099216,95909.0,95906.0,0.10284521]
[1732752251720,0.03099216,95907.0,95906.0,0.10284521]
[1732752251936,0.06328676,95907.0,95906.0,0.10284521]
[1732752252425,0.06328676,95907.0,95906.0,0.10484521]
[1732752252640,0.06328676,95907.0,95906.0,0.25284521]
[1732752253855,0.16755376,95907.0,95906.0,0.25584521]
[1732752254107,0.06328676,95907.0,95906.0,0.25584521]
[1732752254544,0.06328676,95907.0,95906.0,0.38011321]
[1732752254755,0.05025761,95907.0,95906.0,0.38011321]
[1732752255172,0.05025761,95907.0,95906.0,0.38311321]
[1732752255419,0.05025761,95907.0,95906.0,0.38011321]
[1732752255648,0.129281,95919.0,95911.0,0.104262]
[1732752255859,0.129281,95919.0,95912.0,0.12584521]
[1732752255860,0.06344774,95918.0,95912.0,0.12584521]
[1732752256114,0.06344774,95917.0,95913.0,0.00184523]
[1732752256343,0.06344774,95916.0,95914.0,0.10284521]
[1732752256573,0.06344774,95915.0,95914.0,0.10284521]
[1732752257426,0.06344774,95915.0,95906.0,0.0017148]
[1732752257427,0.104267,95907.0,95906.0,0.0017148]
[1732752257659,0.06344774,95907.0,95906.0,0.10456001]
[1732752258104,0.06344774,95907.0,95906.0,0.20882801]
[1732752258335,0.06344774,95907.0,95906.0,0.10456001]
[1732752258566,0.05041922,95907.0,95906.0,0.10456001]
[1732752258776,0.104263,95911.0,95906.0,0.10556001]
[1732752259001,0.209519,95915.0,95907.0,0.10284521]
[1732752259205,0.001,95915.0,95907.0,0.10284521]
[1732752259417,0.208522,95913.0,95907.0,0.10469055]
[1732752259624,0.10426,95914.0,95907.0,0.10284521]
[1732752259899,0.208511,95919.0,95907.0,0.10284521]
[1732752259900,0.0634634,95912.0,95907.0,0.10284521]
[1732752260104,0.0634634,95913.0,95907.0,0.10284521]
[1732752260314,0.1677244,95913.0,95907.0,0.10284521]
[1732752260560,0.0634634,95913.0,95908.0,0.104265]
[1732752260774,0.1677244,95913.0,95909.0,0.10284521]
[1732752261031,0.05043387,95911.0,95909.0,0.10284521]
[1732752261240,0.001,95914.0,95909.0,0.10284521]
[1732752261458,0.0193925,95913.0,95912.0,0.104262]
[1732752261671,0.0193925,95913.0,95912.0,0.20710721]
[1732752261917,0.10425,95923.0,95914.0,0.208519]
[1732752262137,0.001,95913.0,95912.0,0.104262]
[1732752262355,0.001,95913.0,95912.0,0.38010721]
[1732752262836,0.001,95913.0,95912.0,0.46120721]
[1732752263294,0.001,95913.0,95912.0,0.47220721]
[1732752263498,0.14370208,95944.0,95939.0,0.208464]
[1732752263777,0.14370208,95944.0,95942.0,0.104229]
[1732752264010,0.14370208,95944.0,95942.0,0.20707421]
[1732752264228,0.14370208,95944.0,95942.0,0.10284521]
[1732752264467,0.14370208,95944.0,95920.0,0.15]
[1732752264708,0.14370208,95944.0,95912.0,0.1051]
[1732752264709,0.14370208,95944.0,95939.0,0.001]
[1732752264954,0.104231,95940.0,95939.0,0.001]
[1732752265186,0.104231,95940.0,95934.0,0.104237]
[1732752265421,0.104231,95940.0,95887.0,0.02091878]
[1732752265422,0.104234,95938.0,95935.0,0.10284521]
[1732752265656,0.208461,95941.0,95935.0,0.10284521]
[1732752265870,0.104236,95936.0,95935.0,0.10284521]
[1732752266087,0.14370208,95944.0,95935.0,0.10284521]
[1732752266798,0.14370208,95944.0,95943.0,0.104228]
[1732752267007,0.14370208,95944.0,95943.0,0.20707321]
[1732752267994,0.14370208,95944.0,95943.0,0.10284521]
[1732752268427,0.24792908,95944.0,95943.0,0.001]
[1732752268897,0.24792908,95944.0,95942.0,0.0017148]
[1732752268898,0.104228,95943.0,95942.0,0.0017148]
[1732752269353,0.232328,95943.0,95942.0,0.0017148]
[1732752269855,0.104267,95907.0,95899.0,0.104275]
[1732752270062,0.833948,95929.0,95899.0,0.104275]
[1732752270063,0.208487,95929.0,95906.0,0.10456001]
[1732752270282,0.12522627,95920.0,95907.0,0.10284521]
[1732752270526,0.104262,95912.0,95907.0,0.10284521]
[1732752270741,0.208524,95913.0,95907.0,0.10284521]
[1732752270964,0.10426,95914.0,95907.0,0.10284521]
[1732752271187,0.104258,95916.0,95911.0,0.104262]
[1732752271419,0.104258,95916.0,95911.0,0.20710821]
[1732752271648,0.208504,95921.0,95911.0,0.10284521]
[1732752271875,0.10426,95914.0,95911.0,0.10284521]
[1732752272100,0.104262,95913.0,95911.0,0.10284521]
[1732752272310,0.12522627,95930.0,95911.0,0.10284521]
[1732752272311,0.18781784,95930.0,95911.0,0.10284521]
[1732752272542,0.104262,95912.0,95911.0,0.10284521]
[1732752272748,0.104262,95912.0,95911.0,0.10784521]
[1732752272963,0.104262,95912.0,95911.0,0.10284521]
[1732752273173,0.104262,95912.0,95911.0,0.10884521]
[1732752273615,0.104262,95912.0,95911.0,0.10284521]
[1732752274536,0.104262,95912.0,95911.0,0.10684521]
[1732752274969,0.104262,95912.0,95911.0,0.008]
[1732752275281,0.104262,95912.0,95911.0,0.004]
[1732752275488,0.208519,95915.0,95906.0,0.0017148]
[1732752275489,0.104267,95907.0,95906.0,0.0017148]
[1732752276214,0.1237,95929.0,95906.0,0.0017148]
[1732752276470,0.004,95912.0,95911.0,0.104263]
[1732752276703,0.002,95912.0,95911.0,0.20895342]
[1732752277625,0.2085,95924.0,95911.0,0.10469042]
[1732752277834,0.104252,95921.0,95916.0,0.104257]
[1732752278057,0.104252,95921.0,95917.0,0.10284521]
[1732752278268,0.104253,95920.0,95917.0,0.10284521]
[1732752278486,0.02504927,95936.0,95917.0,0.10284521]
[1732752278742,0.208499,95924.0,95917.0,0.20710121]
[1732752278943,0.002,95929.0,95917.0,0.10284521]
[1732752279151,0.0008576,95919.0,95917.0,0.10284521]
[1732752279398,0.0008576,95919.0,95918.0,0.104255]
[1732752279608,0.0008576,95919.0,95918.0,0.20710021]
[1732752279826,0.0008576,95919.0,95918.0,0.20894534]
[1732752280061,0.0008576,95919.0,95918.0,0.20710021]
[1732752281205,0.0008576,95919.0,95918.0,0.10284521]
[1732752281884,0.0008576,95919.0,95918.0,0.21110021]
[1732752282094,0.0008576,95919.0,95918.0,0.21010021]
[1732752282333,0.0008576,95919.0,95918.0,0.21310021]
[1732752283519,0.0008576,95919.0,95918.0,0.10884521]
[1732752283770,0.0008576,95919.0,95918.0,0.23794539]
[1732752284018,0.0008576,95919.0,95918.0,0.23610021]
[1732752284720,0.0008576,95919.0,95918.0,0.38610021]
[1732752291053,0.0008576,95919.0,95918.0,0.38781501]
[1732752291265,0.0008576,95919.0,95918.0,0.46541501]
[1732752291920,0.0008576,95919.0,95918.0,0.46241501]
[1732752292128,0.0008576,95919.0,95918.0,0.45941501]
[1732752292343,0.0008576,95919.0,95918.0,0.46441501]
[1732752292583,0.0008576,95919.0,95918.0,0.48041501]
[1732752293208,0.0008574,95942.0,95941.0,0.10423]
[1732752293415,0.0008574,95942.0,95941.0,0.45767521]
[1732752294090,0.0008574,95942.0,95941.0,0.46767521]
[1732752294343,0.09861079,95944.0,95943.0,0.114228]
[1732752294552,0.0008584,95953.0,95947.0,0.297224]
[1732752294763,0.0008584,95953.0,95947.0,0.47766921]
[1732752294970,0.0008584,95953.0,95947.0,0.52286921]
[1732752295400,0.0008584,95953.0,95949.0,0.124222]
[1732752295623,0.0008584,95953.0,95949.0,0.47951109]
[1732752295822,0.00151595,95950.0,95949.0,0.47766721]
[1732752296031,0.0008584,95953.0,95952.0,0.374818]
[1732752296238,0.0008584,95953.0,95952.0,0.47766321]
[1732752296465,0.104161,96005.0,95993.0,0.104173]
[1732752296672,0.208315,96008.0,95994.0,0.10468887]
[1732752296880,0.0430921,96009.0,95994.0,0.10468887]
[1732752297076,0.104161,96005.0,95994.0,0.10468887]
[1732752297321,0.0430921,96009.0,95994.0,0.10468887]
[1732752297531,0.041686,96013.0,96009.0,0.104156]
[1732752297754,0.208284,96023.0,96010.0,0.10284521]
[1732752297976,0.104143,96021.0,96010.0,0.10284521]
[1732752298280,0.104145,96020.0,96010.0,0.10284521]
[1732752298504,0.2292492,96029.0,96013.0,0.104152]
[1732752298505,0.00682019,96014.0,96013.0,0.104152]
[1732752298731,0.00682019,96014.0,96013.0,0.20884042]
[1732752298959,0.04208,96029.0,96014.0,0.104151]
[1732752299190,0.0004,96029.0,96014.0,0.20883941]
[1732752299439,0.0004,96029.0,96014.0,0.38183941]
[1732752299658,0.0004,96029.0,96014.0,0.37999621]
[1732752300616,0.0004,96029.0,96014.0,0.40799092]
[1732752301326,0.0004,96029.0,96014.0,0.37999621]
[1732752301585,0.0004,96029.0,96014.0,0.40799092]
[1732752301801,0.0004,96029.0,96014.0,0.37999621]
[1732752302512,0.0018576,96015.0,96014.0,0.37999621]
[1732752302961,0.0008576,96015.0,96014.0,0.37999621]
[1732752303179,0.0008576,96015.0,96014.0,0.37252898]
[1732752303394,0.0008576,96015.0,96014.0,0.38052898]
[1732752303824,0.0008576,96015.0,96014.0,0.37925569]
[1732752304034,0.0008576,96015.0,96014.0,0.38825569]
[1732752304466,0.0008576,96015.0,96014.0,0.37925569]
[1732752305157,0.0008576,96015.0,96014.0,0.38325569]
[1732752305409,6.71e-05,96015.0,96014.0,0.52205569]
[1732752305647,0.0004,96029.0,96028.0,0.277136]
[1732752305909,0.0004,96029.0,96028.0,0.37998121]
[1732752306198,0.0004,96029.0,96028.0,0.40667205]
[1732752306408,0.0004,96029.0,96028.0,0.37998121]
[1732752307305,0.0004,96029.0,96028.0,0.40580735]
[1732752307522,0.0004,96029.0,96028.0,0.38898121]
[1732752307752,0.0004,96029.0,96028.0,0.37998121]
[1732752308235,0.0004,96029.0,96028.0,0.38898121]
[1732752308460,0.0004,96029.0,96028.0,0.26184521]
[1732752308694,0.104535,96029.0,96028.0,0.12084521]
[1732752309086,0.10939904,96029.0,96028.0,0.12084521]
[1732752309334,0.00526404,96029.0,96028.0,0.11184521]
[1732752309549,0.00526404,96029.0,96028.0,0.10284521]
[1732752309786,0.00526404,96029.0,96028.0,0.10984521]
[1732752309787,0.0004,96029.0,96028.0,0.10984521]
[1732752310215,0.0004,96029.0,96028.0,0.10284521]
[1732752310428,0.00526404,96029.0,96028.0,0.10284521]
[1732752310657,0.0004,96029.0,96028.0,0.10284521]
[1732752310870,0.0004,96029.0,96028.0,0.11184521]
[1732752310871,0.104535,96029.0,96028.0,0.11184521]
[1732752311347,0.10939904,96029.0,96028.0,0.11184521]
[1732752311789,0.10939904,96029.0,96028.0,0.10284521]
[1732752312009,0.10939904,96029.0,96000.0,0.19743829]
[1732752312010,0.208272,96028.0,95998.0,0.208335]
[1732752312231,0.18529904,96029.0,96028.0,0.004]
[1732752312447,0.180435,96029.0,96028.0,0.006]
[1732752312667,0.229635,96029.0,96028.0,0.002]
[1732752312908,0.229635,96029.0,96028.0,0.006]
[1732752313122,0.10416,96006.0,96005.0,0.10284521]
[1732752313371,0.1255,96029.0,95989.0,0.208357]
[1732752313648,0.1255,96029.0,95981.0,0.208374]
[1732752313649,0.1255,96029.0,95995.0,0.1046888]
[1732752313865,0.1255,96029.0,96006.0,0.104159]
[1732752314089,0.1255,96029.0,96007.0,0.10468851]
[1732752314323,0.208278,96026.0,96007.0,0.10468851]
[1732752314532,0.104144,96021.0,96012.0,0.104153]
[1732752314745,0.104145,96020.0,96013.0,0.10284521]
[1732752314979,0.104145,96020.0,96014.0,0.023]
[1732752315194,0.104145,96020.0,96015.0,0.10284521]
[1732752315421,0.104146,96019.0,96015.0,0.10284521]
[1732752315665,0.00721549,96019.0,96015.0,0.10284521]
[1732752315875,0.00480711,96019.0,96015.0,0.10284521]
[1732752316091,0.0004,96029.0,96015.0,0.10284521]
[1732752316092,0.10414,96025.0,96016.0,0.104148]
[1732752316305,0.0004,96029.0,96017.0,0.10284521]
[1732752316522,0.0004,96029.0,96020.0,0.104143]
[1732752316523,0.00482763,96024.0,96020.0,0.104143]
[1732752316731,0.00482763,96024.0,96021.0,0.10284521]
[1732752316957,0.00723661,96023.0,96021.0,0.20698821]
[1732752317166,0.0008574,96027.0,96022.0,0.104142]
[1732752317371,0.0008574,96027.0,96022.0,0.20698721]
[1732752317607,0.0008574,96027.0,96022.0,0.10284521]
[1732752317608,0.00483407,96026.0,96022.0,0.10284521]
[1732752318441,0.10414,96024.0,96022.0,0.10284521]
[1732752318867,0.10414,96024.0,96022.0,0.10384521]
[1732752319096,0.10896541,96023.0,96022.0,0.10384521]
[1732752319305,0.10896541,96023.0,96022.0,0.002]
[1732752319809,0.10896541,96023.0,96022.0,0.001]
[1732752320298,0.10896541,96023.0,96022.0,0.002]
[1732752320299,0.00482441,96023.0,96022.0,0.002]
[1732752320538,0.0008574,96027.0,96022.0,0.002]
[1732752320787,0.10894794,96023.0,96022.0,0.001]
[1732752321001,0.104141,96023.0,96022.0,0.003]
[1732752321226,0.10894794,96023.0,96022.0,0.003]
[1732752321466,0.10894794,96023.0,96022.0,0.001]
[1732752321695,0.10894794,96023.0,96022.0,0.003]
[1732752323059,0.00480694,96023.0,96022.0,0.003]
[1732752323533,0.10894406,96023.0,96022.0,0.003]
[1732752323959,0.10894406,96023.0,96016.0,0.104148]
[1732752324195,0.104144,96021.0,96017.0,0.10284521]
[1732752324442,0.00480306,96023.0,96018.0,0.208294]
[1732752324674,0.00491772,96020.0,96019.0,0.59012641]
[1732752324896,0.003,96023.0,96019.0,0.56193721]
[1732752325178,0.0008574,96027.0,96019.0,0.56193721]
[1732752325179,0.0008574,96027.0,96026.0,0.277138]
[1732752325424,0.0008574,96027.0,96026.0,0.37998321]
[1732752325912,0.0008574,96027.0,96026.0,0.45778321]
[1732752326133,0.0008574,96027.0,96026.0,0.46778321]
[1732752326377,0.0004,96069.0,96037.0,0.01]
[1732752326589,0.0004,96069.0,96039.0,0.37996921]
[1732752327553,0.0004,96069.0,96039.0,0.39996921]
[1732752328427,0.0004,96069.0,96039.0,0.40096921]
[1732752328651,0.0004,96069.0,96039.0,0.42644805]
[1732752329112,0.0058574,96040.0,96039.0,0.42644805]
[1732752329355,0.0058574,96040.0,96039.0,0.41935038]
[1732752330507,0.208195,96092.0,96043.0,0.023]
[1732752330508,6e-05,96092.0,96043.0,0.023]
[1732752330716,0.208146,96086.0,96057.0,0.173]
[1732752330925,0.208146,96086.0,96068.0,0.127092]
[1732752331159,0.208155,96082.0,96070.0,0.023]
[1732752331393,0.104084,96077.0,96073.0,0.023]
[1732752331606,0.00539901,96081.0,96075.0,0.023]
[1732752331825,0.104082,96078.0,96076.0,0.10284521]
[1732752332044,0.104083,96077.0,96076.0,0.10284521]
[1732752332507,0.010841,96090.0,96076.0,0.10284521]
[1732752332714,0.010841,96090.0,96086.0,0.104073]
[1732752332943,0.010841,96090.0,96089.0,0.10407]
[1732752333130,0.010841,96090.0,96089.0,0.20691521]
[1732752333385,0.010841,96090.0,96089.0,0.35875708]
[1732752333625,0.010841,96090.0,96089.0,0.35691521]
[1732752333847,0.010841,96090.0,96089.0,0.37991521]
[1732752335482,0.010841,96090.0,96089.0,0.12584521]
[1732752335910,0.11491,96090.0,96089.0,0.13884521]
[1732752336144,0.11491,96090.0,96089.0,0.005]
[1732752336676,0.11491,96090.0,96089.0,0.014]
[1732752336677,0.010841,96090.0,96089.0,0.014]
[1732752337138,0.010841,96090.0,96089.0,0.11807]
[1732752337392,0.010841,96090.0,96089.0,0.24391521]
[1732752337616,0.010841,96090.0,96089.0,0.39391521]
[1732752337824,0.010841,96090.0,96089.0,0.38891521]
[1732752338031,0.010841,96090.0,96089.0,0.38491521]
[1732752338505,0.010841,96090.0,96089.0,0.39291521]
[1732752338715,0.010841,96090.0,96089.0,0.37991521]
[1732752338936,0.010841,96090.0,96089.0,0.48770469]
[1732752339166,0.010841,96090.0,96089.0,0.47091521]
[1732752339385,0.010841,96090.0,96089.0,0.37991521]
[1732752339617,0.010841,96090.0,96089.0,0.27584521]
[1732752339856,0.010841,96090.0,96089.0,0.39291521]
[1732752340566,0.010841,96090.0,96089.0,0.38491521]
[1732752341221,0.010841,96090.0,96089.0,0.37991521]
[1732752341437,0.010841,96090.0,96089.0,0.38491521]
[1732752341644,0.0116986,96090.0,96089.0,0.38491521]
[1732752342102,0.0116986,96090.0,96089.0,0.38791521]
[1732752342336,0.0116986,96090.0,96089.0,0.38491521]
[1732752342550,0.0116986,96090.0,96089.0,0.39291521]
[1732752342770,0.0116986,96090.0,96089.0,0.38791521]
[1732752343243,0.0116986,96090.0,96089.0,0.39291521]
[1732752344571,0.0116986,96090.0,96089.0,0.28384521]
[1732752344826,0.0116986,96090.0,96089.0,0.11084521]
[1732752345074,0.1157676,96090.0,96089.0,0.005]
[1732752345310,0.12177969,96090.0,96089.0,0.005]
[1732752345569,0.1200188,96090.0,96089.0,0.008]
[1732752345775,0.1200188,96090.0,96058.0,0.078]
[1732752345776,0.104084,96076.0,96058.0,0.078]
[1732752345992,0.104084,96076.0,96047.0,0.078]
[1732752346241,0.104084,96076.0,96038.0,0.208248]
[1732752346242,0.18351803,96076.0,96038.0,0.208248]
[1732752346496,0.12483754,96070.0,96034.0,0.208258]
[1732752346738,0.104112,96051.0,96045.0,0.104117]
[1732752346973,0.208185,96068.0,96046.0,0.10284521]
[1732752347193,0.0042095,96050.0,96047.0,0.00184261]
[1732752347477,0.208205,96059.0,96025.0,0.208279]
[1732752347712,0.0042048,96049.0,96026.0,0.10284521]
[1732752347955,0.104122,96041.0,96029.0,0.104135]
[1732752348202,0.104125,96038.0,96031.0,0.104132]
[1732752348429,0.00419637,96040.0,96032.0,0.10284521]
[1732752348678,0.00419356,96037.0,96032.0,0.10284521]
[1732752348916,0.520517,96058.0,96033.0,0.023]
[1732752349151,0.00419262,96036.0,96034.0,0.10284521]
[1732752349395,0.01,96071.0,96034.0,0.10284521]
[1732752349635,0.00419168,96035.0,96034.0,0.20697421]
[1732752349878,0.104121,96042.0,96035.0,0.104128]
[1732752350123,0.03522057,96066.0,96036.0,0.10284521]
[1732752350383,0.104125,96039.0,96036.0,0.10284521]
[1732752350627,0.104126,96038.0,96036.0,0.10284521]
[1732752350877,0.104124,96040.0,96036.0,0.10284521]
[1732752351127,0.104125,96039.0,96036.0,0.10284521]
[1732752351369,0.104121,96042.0,96036.0,0.10284521]
[1732752351617,0.104122,96041.0,96036.0,0.10284521]
[1732752351866,0.208194,96064.0,96036.0,0.10284521]
[1732752352121,0.208241,96043.0,96036.0,0.10284521]
[1732752352374,0.03522057,96066.0,96036.0,0.10284521]
[1732752352625,0.02522057,96066.0,96037.0,0.104125]
[1732752352882,0.01,96067.0,96038.0,0.10284521]
[1732752352883,0.208239,96044.0,96038.0,0.10284521]
[1732752353131,0.104124,96039.0,96038.0,0.10284521]
[1732752353568,0.104123,96040.0,96038.0,0.10284521]
[1732752353774,0.104124,96039.0,96038.0,0.10284521]
[1732752355429,0.104124,96039.0,96038.0,0.003]
[1732752355642,0.0812,96049.0,96026.0,0.001716]
[1732752355643,0.104137,96027.0,96026.0,0.001716]
[1732752355926,0.149737,96027.0,96026.0,0.001716]
[1732752356770,0.149737,96027.0,95995.0,0.0814]
[1732752356771,0.0456,96027.0,95995.0,0.0814]
[1732752357021,0.0456,96027.0,95990.0,0.208354]
[1732752357022,0.104141,96023.0,95990.0,0.208354]
[1732752357225,0.253876,96027.0,95968.0,0.208401]
[1732752357226,0.0456,96027.0,95984.0,0.0814]
[1732752357442,0.0456,96027.0,95986.0,0.208363]
[1732752357443,0.18730234,96020.0,95986.0,0.208363]
[1732752357656,0.18730234,96020.0,95987.0,0.31304992]
[1732752357899,0.104172,95995.0,95988.0,0.104179]
[1732752358141,0.208339,95998.0,95990.0,0.104177]
[1732752358381,0.18730234,96020.0,95991.0,0.10284521]
[1732752358600,0.104166,96000.0,95994.0,0.104173]
[1732752358857,0.104171,95996.0,95994.0,0.10284521]
[1732752359098,0.104171,95996.0,95968.0,0.0483]
[1732752359099,0.104189,95979.0,95953.0,0.09252769]
[1732752359330,0.104189,95979.0,95951.0,0.0004]
[1732752359786,0.104189,95979.0,95954.0,0.208432]